{"text_format":"3","workbook":"xlsx","n_sheets":2,"sheets":["Controlador de perda de peso","cálculos"],"not_rendered":{"charts":1,"defined_names":9},"read":"whole","date_system":"1900"}

{"sheet":"Controlador de perda de peso","index":0,"n_rows":19,"n_cols":9,"rows_kept":19,"merged":[[0,3,0,7],[0,8,0,9],[1,3,2,9]]}
[null,"META DE PESO","MODO DE EXIBIÇÃO GRÁFICO","Madison Butler",{"$nulls":4},"PERDA DE PESO"]
[{"$nulls":3},"RASTREADOR"]
[null,{"v":172,"d":"172.0"},"SEMANAL"]
[null,"MOSTRAR PESO DA META","Sim"]
[null,"O gráfico de controlador de peso que controla o peso atual está nesta célula. Selecione \"Sim\" na célula C4 para mostrar a linha de peso da meta sobre o gráfico de área."]
[]
[null,"DATA","PESO"]
[null,{"$f":"TODAY()-77","v":"2023-01-11"},{"v":176,"d":"176.0"}]
[null,{"$f":"TODAY()-70","v":"2023-01-18"},{"v":176,"d":"176.0"}]
[null,{"$f":"TODAY()-63","v":"2023-01-25"},177.6]
[null,{"$f":"TODAY()-56","v":"2023-02-01"},176.5]
[null,{"$f":"TODAY()-49","v":"2023-02-08"},176.1]
[null,{"$f":"TODAY()-42","v":"2023-02-15"},{"v":174,"d":"174.0"}]
[null,{"$f":"TODAY()-35","v":"2023-02-22"},173.5]
[null,{"$f":"TODAY()-28","v":"2023-03-01"},{"v":173,"d":"173.0"}]
[null,{"$f":"TODAY()-21","v":"2023-03-08"},{"v":172,"d":"172.0"}]
[null,{"$f":"TODAY()-14","v":"2023-03-15"},{"v":172,"d":"172.0"}]
[null,{"$f":"TODAY()-7","v":"2023-03-22"},{"v":173,"d":"173.0"}]
[null,{"$f":"TODAY()","v":"2023-03-29"},{"v":172,"d":"172.0"}]

{"sheet":"cálculos","index":1,"n_rows":107,"n_cols":17,"rows_kept":107,"hidden":true}
["*** A planilha deve permanecer oculta ***"]
[]
[{"$f":"COUNTIF(A5:A107,FALSE)","v":12},"Períodos","Valores",{"$nulls":3},{"$f":"COUNTIF(H5:H28,\">\"&0)","v":3},"Períodos",null,"Valores"]
[null,"Semana",null,null,{"$f":"IFERROR(IF(ShowGoalWeight=\"Sim\", TRUE, FALSE),FALSE)","v":true},null,null,"Mês","EOM"]
[{"$f":"FALSE","v":false},{"$f":"IFERROR(IF(LEN('Controlador de perda de peso'!$B8)=0,TODAY(),'Controlador de perda de peso'!$B8),TODAY())","v":"2023-01-11"},{"$f":"IFERROR(IF(LEN('Controlador de perda de peso'!$C8)=0,GoalWeight,'Controlador de perda de peso'!$C8),0)","v":176},{"$f":"IFERROR(IF(MIN(ChartPeriods)=0,TODAY(),MIN(ChartPeriods)),TODAY())","v":"2023-01-11"},{"$f":"IFERROR(IF($A$5,0,IF($E$4,GoalWeight,NA())),0)","v":172},null,null,{"$f":"IFERROR(IF($A$5,TODAY(),DATE(YEAR($B5),MONTH($B5),1)),\"\")","v":"2023-01-01"},{"$f":"IFERROR(IF($A$5,TODAY(),EOMONTH($H5,0)),\"\")","v":"2023-01-31"},{"$f":"IFERROR(IF($A$5,0,AVERAGEIFS(Peso[PESO],Peso[DATA],\">=\"&$H5,Peso[DATA],\"<=\"&$I5)),NA())","v":176.53333333333333}]
[{"$f":"IF((LEN('Controlador de perda de peso'!$C9)=0),TRUE)","v":false},{"$f":"IFERROR(IF(A6,0,IF(LEN('Controlador de perda de peso'!$B9)=0,0,'Controlador de perda de peso'!$B9)),\"\")","v":"2023-01-18"},{"$f":"IFERROR(IF(A6,0,IF(LEN('Controlador de perda de peso'!$C9)=0,0,'Controlador de perda de peso'!$C9)),\"\")","v":176},{"$f":"IFERROR(IF(MAX(ChartPeriods)=0,TODAY(),MAX(ChartPeriods)),TODAY())","v":"2023-03-29"},{"$f":"IFERROR(IF($A$5,0,IF($E$4,GoalWeight,NA())),0)","v":172},null,null,{"$f":"IF($I5+1>MAX($B:$B),NA(),$I5+1)","v":"2023-02-01"},{"$f":"EOMONTH($H6,0)","v":"2023-02-28"},{"$f":"IFERROR(AVERAGEIFS(Peso[PESO],Peso[DATA],\">=\"&$H6,Peso[DATA],\"<=\"&$I6),NA())","v":175.025}]
[{"$f":"IF((LEN('Controlador de perda de peso'!$C10)=0),TRUE)","v":false},{"$f":"IFERROR(IF(A7,0,IF(LEN('Controlador de perda de peso'!$B10)=0,0,'Controlador de perda de peso'!$B10)),\"\")","v":"2023-01-25"},{"$f":"IFERROR(IF(A7,0,IF(LEN('Controlador de perda de peso'!$C10)=0,0,'Controlador de perda de peso'!$C10)),\"\")","v":177.6},{"$nulls":4},"2023-03-01","2023-03-31",{"$f":"IFERROR(AVERAGEIFS(Peso[PESO],Peso[DATA],\">=\"&$H7,Peso[DATA],\"<=\"&$I7),NA())","v":172.4}]
[{"$f":"IF((LEN('Controlador de perda de peso'!$C11)=0),TRUE)","v":false},{"$f":"IFERROR(IF(A8,0,IF(LEN('Controlador de perda de peso'!$B11)=0,0,'Controlador de perda de peso'!$B11)),\"\")","v":"2023-02-01"},{"$f":"IFERROR(IF(A8,0,IF(LEN('Controlador de perda de peso'!$C11)=0,0,'Controlador de perda de peso'!$C11)),\"\")","v":176.5},{"$nulls":4},{"$error":"#N/A"},{"$error":"#N/A"},{"$f":"IFERROR(AVERAGEIFS(Peso[PESO],Peso[DATA],\">=\"&$H8,Peso[DATA],\"<=\"&$I8),NA())","v":{"$error":"#N/A"}}]
[{"$f":"IF((LEN('Controlador de perda de peso'!$C12)=0),TRUE)","v":false},{"$f":"IFERROR(IF(A9,0,IF(LEN('Controlador de perda de peso'!$B12)=0,0,'Controlador de perda de peso'!$B12)),\"\")","v":"2023-02-08"},{"$f":"IFERROR(IF(A9,0,IF(LEN('Controlador de perda de peso'!$C12)=0,0,'Controlador de perda de peso'!$C12)),\"\")","v":176.1},{"$nulls":4},{"$error":"#N/A"},{"$error":"#N/A"},{"$f":"IFERROR(AVERAGEIFS(Peso[PESO],Peso[DATA],\">=\"&$H9,Peso[DATA],\"<=\"&$I9),NA())","v":{"$error":"#N/A"}}]
[{"$f":"IF((LEN('Controlador de perda de peso'!$C13)=0),TRUE)","v":false},{"$f":"IFERROR(IF(A10,0,IF(LEN('Controlador de perda de peso'!$B13)=0,0,'Controlador de perda de peso'!$B13)),\"\")","v":"2023-02-15"},{"$f":"IFERROR(IF(A10,0,IF(LEN('Controlador de perda de peso'!$C13)=0,0,'Controlador de perda de peso'!$C13)),\"\")","v":174},{"$nulls":4},{"$error":"#N/A"},{"$error":"#N/A"},{"$f":"IFERROR(AVERAGEIFS(Peso[PESO],Peso[DATA],\">=\"&$H10,Peso[DATA],\"<=\"&$I10),NA())","v":{"$error":"#N/A"}}]
[{"$f":"IF((LEN('Controlador de perda de peso'!$C14)=0),TRUE)","v":false},{"$f":"IFERROR(IF(A11,0,IF(LEN('Controlador de perda de peso'!$B14)=0,0,'Controlador de perda de peso'!$B14)),\"\")","v":"2023-02-22"},{"$f":"IFERROR(IF(A11,0,IF(LEN('Controlador de perda de peso'!$C14)=0,0,'Controlador de perda de peso'!$C14)),\"\")","v":173.5},{"$nulls":4},{"$error":"#N/A"},{"$error":"#N/A"},{"$f":"IFERROR(AVERAGEIFS(Peso[PESO],Peso[DATA],\">=\"&$H11,Peso[DATA],\"<=\"&$I11),NA())","v":{"$error":"#N/A"}},{"$nulls":6},{"$f":"MAX($B:$B)","v":"2023-03-29"}]
[{"$f":"IF((LEN('Controlador de perda de peso'!$C15)=0),TRUE)","v":false},{"$f":"IFERROR(IF(A12,0,IF(LEN('Controlador de perda de peso'!$B15)=0,0,'Controlador de perda de peso'!$B15)),\"\")","v":"2023-03-01"},{"$f":"IFERROR(IF(A12,0,IF(LEN('Controlador de perda de peso'!$C15)=0,0,'Controlador de perda de peso'!$C15)),\"\")","v":173},{"$nulls":4},{"$error":"#N/A"},{"$error":"#N/A"},{"$f":"IFERROR(AVERAGEIFS(Peso[PESO],Peso[DATA],\">=\"&$H12,Peso[DATA],\"<=\"&$I12),NA())","v":{"$error":"#N/A"}}]
[{"$f":"IF((LEN('Controlador de perda de peso'!$C16)=0),TRUE)","v":false},{"$f":"IFERROR(IF(A13,0,IF(LEN('Controlador de perda de peso'!$B16)=0,0,'Controlador de perda de peso'!$B16)),\"\")","v":"2023-03-08"},{"$f":"IFERROR(IF(A13,0,IF(LEN('Controlador de perda de peso'!$C16)=0,0,'Controlador de perda de peso'!$C16)),\"\")","v":172},{"$nulls":4},{"$error":"#N/A"},{"$error":"#N/A"},{"$f":"IFERROR(AVERAGEIFS(Peso[PESO],Peso[DATA],\">=\"&$H13,Peso[DATA],\"<=\"&$I13),NA())","v":{"$error":"#N/A"}}]
[{"$f":"IF((LEN('Controlador de perda de peso'!$C17)=0),TRUE)","v":false},{"$f":"IFERROR(IF(A14,0,IF(LEN('Controlador de perda de peso'!$B17)=0,0,'Controlador de perda de peso'!$B17)),\"\")","v":"2023-03-15"},{"$f":"IFERROR(IF(A14,0,IF(LEN('Controlador de perda de peso'!$C17)=0,0,'Controlador de perda de peso'!$C17)),\"\")","v":172},{"$nulls":4},{"$error":"#N/A"},{"$error":"#N/A"},{"$f":"IFERROR(AVERAGEIFS(Peso[PESO],Peso[DATA],\">=\"&$H14,Peso[DATA],\"<=\"&$I14),NA())","v":{"$error":"#N/A"}}]
[{"$f":"IF((LEN('Controlador de perda de peso'!$C18)=0),TRUE)","v":false},{"$f":"IFERROR(IF(A15,0,IF(LEN('Controlador de perda de peso'!$B18)=0,0,'Controlador de perda de peso'!$B18)),\"\")","v":"2023-03-22"},{"$f":"IFERROR(IF(A15,0,IF(LEN('Controlador de perda de peso'!$C18)=0,0,'Controlador de perda de peso'!$C18)),\"\")","v":173},{"$nulls":4},{"$error":"#N/A"},{"$error":"#N/A"},{"$f":"IFERROR(AVERAGEIFS(Peso[PESO],Peso[DATA],\">=\"&$H15,Peso[DATA],\"<=\"&$I15),NA())","v":{"$error":"#N/A"}}]
[{"$f":"IF((LEN('Controlador de perda de peso'!$C19)=0),TRUE)","v":false},{"$f":"IFERROR(IF(A16,0,IF(LEN('Controlador de perda de peso'!$B19)=0,0,'Controlador de perda de peso'!$B19)),\"\")","v":"2023-03-29"},{"$f":"IFERROR(IF(A16,0,IF(LEN('Controlador de perda de peso'!$C19)=0,0,'Controlador de perda de peso'!$C19)),\"\")","v":172},{"$nulls":4},{"$error":"#N/A"},{"$error":"#N/A"},{"$f":"IFERROR(AVERAGEIFS(Peso[PESO],Peso[DATA],\">=\"&$H16,Peso[DATA],\"<=\"&$I16),NA())","v":{"$error":"#N/A"}}]
[{"$f":"IF((LEN('Controlador de perda de peso'!$C20)=0),TRUE)","v":true},{"$f":"IFERROR(IF(A17,0,IF(LEN('Controlador de perda de peso'!$B20)=0,0,'Controlador de perda de peso'!$B20)),\"\")","v":"00:00:00"},{"$f":"IFERROR(IF(A17,0,IF(LEN('Controlador de perda de peso'!$C20)=0,0,'Controlador de perda de peso'!$C20)),\"\")","v":0},{"$nulls":4},{"$error":"#N/A"},{"$error":"#N/A"},{"$f":"IFERROR(AVERAGEIFS(Peso[PESO],Peso[DATA],\">=\"&$H17,Peso[DATA],\"<=\"&$I17),NA())","v":{"$error":"#N/A"}}]
[{"$f":"IF((LEN('Controlador de perda de peso'!$C21)=0),TRUE)","v":true},{"$f":"IFERROR(IF(A18,0,IF(LEN('Controlador de perda de peso'!$B21)=0,0,'Controlador de perda de peso'!$B21)),\"\")","v":"00:00:00"},{"$f":"IFERROR(IF(A18,0,IF(LEN('Controlador de perda de peso'!$C21)=0,0,'Controlador de perda de peso'!$C21)),\"\")","v":0},{"$nulls":4},{"$error":"#N/A"},{"$error":"#N/A"},{"$f":"IFERROR(AVERAGEIFS(Peso[PESO],Peso[DATA],\">=\"&$H18,Peso[DATA],\"<=\"&$I18),NA())","v":{"$error":"#N/A"}}]
[{"$f":"IF((LEN('Controlador de perda de peso'!$C22)=0),TRUE)","v":true},{"$f":"IFERROR(IF(A19,0,IF(LEN('Controlador de perda de peso'!$B22)=0,0,'Controlador de perda de peso'!$B22)),\"\")","v":"00:00:00"},{"$f":"IFERROR(IF(A19,0,IF(LEN('Controlador de perda de peso'!$C22)=0,0,'Controlador de perda de peso'!$C22)),\"\")","v":0},{"$nulls":4},{"$error":"#N/A"},{"$error":"#N/A"},{"$f":"IFERROR(AVERAGEIFS(Peso[PESO],Peso[DATA],\">=\"&$H19,Peso[DATA],\"<=\"&$I19),NA())","v":{"$error":"#N/A"}}]
[{"$f":"IF((LEN('Controlador de perda de peso'!$C23)=0),TRUE)","v":true},{"$f":"IFERROR(IF(A20,0,IF(LEN('Controlador de perda de peso'!$B23)=0,0,'Controlador de perda de peso'!$B23)),\"\")","v":"00:00:00"},{"$f":"IFERROR(IF(A20,0,IF(LEN('Controlador de perda de peso'!$C23)=0,0,'Controlador de perda de peso'!$C23)),\"\")","v":0},{"$nulls":4},{"$error":"#N/A"},{"$error":"#N/A"},{"$f":"IFERROR(AVERAGEIFS(Peso[PESO],Peso[DATA],\">=\"&$H20,Peso[DATA],\"<=\"&$I20),NA())","v":{"$error":"#N/A"}}]
[{"$f":"IF((LEN('Controlador de perda de peso'!$C24)=0),TRUE)","v":true},{"$f":"IFERROR(IF(A21,0,IF(LEN('Controlador de perda de peso'!$B24)=0,0,'Controlador de perda de peso'!$B24)),\"\")","v":"00:00:00"},{"$f":"IFERROR(IF(A21,0,IF(LEN('Controlador de perda de peso'!$C24)=0,0,'Controlador de perda de peso'!$C24)),\"\")","v":0},{"$nulls":4},{"$error":"#N/A"},{"$error":"#N/A"},{"$f":"IFERROR(AVERAGEIFS(Peso[PESO],Peso[DATA],\">=\"&$H21,Peso[DATA],\"<=\"&$I21),NA())","v":{"$error":"#N/A"}}]
[{"$f":"IF((LEN('Controlador de perda de peso'!$C25)=0),TRUE)","v":true},{"$f":"IFERROR(IF(A22,0,IF(LEN('Controlador de perda de peso'!$B25)=0,0,'Controlador de perda de peso'!$B25)),\"\")","v":"00:00:00"},{"$f":"IFERROR(IF(A22,0,IF(LEN('Controlador de perda de peso'!$C25)=0,0,'Controlador de perda de peso'!$C25)),\"\")","v":0},{"$nulls":4},{"$error":"#N/A"},{"$error":"#N/A"},{"$f":"IFERROR(AVERAGEIFS(Peso[PESO],Peso[DATA],\">=\"&$H22,Peso[DATA],\"<=\"&$I22),NA())","v":{"$error":"#N/A"}}]
[{"$f":"IF((LEN('Controlador de perda de peso'!$C26)=0),TRUE)","v":true},{"$f":"IFERROR(IF(A23,0,IF(LEN('Controlador de perda de peso'!$B26)=0,0,'Controlador de perda de peso'!$B26)),\"\")","v":"00:00:00"},{"$f":"IFERROR(IF(A23,0,IF(LEN('Controlador de perda de peso'!$C26)=0,0,'Controlador de perda de peso'!$C26)),\"\")","v":0},{"$nulls":4},{"$error":"#N/A"},{"$error":"#N/A"},{"$f":"IFERROR(AVERAGEIFS(Peso[PESO],Peso[DATA],\">=\"&$H23,Peso[DATA],\"<=\"&$I23),NA())","v":{"$error":"#N/A"}}]
[{"$f":"IF((LEN('Controlador de perda de peso'!$C27)=0),TRUE)","v":true},{"$f":"IFERROR(IF(A24,0,IF(LEN('Controlador de perda de peso'!$B27)=0,0,'Controlador de perda de peso'!$B27)),\"\")","v":"00:00:00"},{"$f":"IFERROR(IF(A24,0,IF(LEN('Controlador de perda de peso'!$C27)=0,0,'Controlador de perda de peso'!$C27)),\"\")","v":0},{"$nulls":4},{"$error":"#N/A"},{"$error":"#N/A"},{"$f":"IFERROR(AVERAGEIFS(Peso[PESO],Peso[DATA],\">=\"&$H24,Peso[DATA],\"<=\"&$I24),NA())","v":{"$error":"#N/A"}}]
[{"$f":"IF((LEN('Controlador de perda de peso'!$C28)=0),TRUE)","v":true},{"$f":"IFERROR(IF(A25,0,IF(LEN('Controlador de perda de peso'!$B28)=0,0,'Controlador de perda de peso'!$B28)),\"\")","v":"00:00:00"},{"$f":"IFERROR(IF(A25,0,IF(LEN('Controlador de perda de peso'!$C28)=0,0,'Controlador de perda de peso'!$C28)),\"\")","v":0},{"$nulls":4},{"$error":"#N/A"},{"$error":"#N/A"},{"$f":"IFERROR(AVERAGEIFS(Peso[PESO],Peso[DATA],\">=\"&$H25,Peso[DATA],\"<=\"&$I25),NA())","v":{"$error":"#N/A"}}]
[{"$f":"IF((LEN('Controlador de perda de peso'!$C29)=0),TRUE)","v":true},{"$f":"IFERROR(IF(A26,0,IF(LEN('Controlador de perda de peso'!$B29)=0,0,'Controlador de perda de peso'!$B29)),\"\")","v":"00:00:00"},{"$f":"IFERROR(IF(A26,0,IF(LEN('Controlador de perda de peso'!$C29)=0,0,'Controlador de perda de peso'!$C29)),\"\")","v":0},{"$nulls":4},{"$error":"#N/A"},{"$error":"#N/A"},{"$f":"IFERROR(AVERAGEIFS(Peso[PESO],Peso[DATA],\">=\"&$H26,Peso[DATA],\"<=\"&$I26),NA())","v":{"$error":"#N/A"}}]
[{"$f":"IF((LEN('Controlador de perda de peso'!$C30)=0),TRUE)","v":true},{"$f":"IFERROR(IF(A27,0,IF(LEN('Controlador de perda de peso'!$B30)=0,0,'Controlador de perda de peso'!$B30)),\"\")","v":"00:00:00"},{"$f":"IFERROR(IF(A27,0,IF(LEN('Controlador de perda de peso'!$C30)=0,0,'Controlador de perda de peso'!$C30)),\"\")","v":0},{"$nulls":4},{"$error":"#N/A"},{"$error":"#N/A"},{"$f":"IFERROR(AVERAGEIFS(Peso[PESO],Peso[DATA],\">=\"&$H27,Peso[DATA],\"<=\"&$I27),NA())","v":{"$error":"#N/A"}}]
[{"$f":"IF((LEN('Controlador de perda de peso'!$C31)=0),TRUE)","v":true},{"$f":"IFERROR(IF(A28,0,IF(LEN('Controlador de perda de peso'!$B31)=0,0,'Controlador de perda de peso'!$B31)),\"\")","v":"00:00:00"},{"$f":"IFERROR(IF(A28,0,IF(LEN('Controlador de perda de peso'!$C31)=0,0,'Controlador de perda de peso'!$C31)),\"\")","v":0},{"$nulls":4},{"$error":"#N/A"},{"$error":"#N/A"},{"$f":"IFERROR(AVERAGEIFS(Peso[PESO],Peso[DATA],\">=\"&$H28,Peso[DATA],\"<=\"&$I28),NA())","v":{"$error":"#N/A"}}]
[{"$f":"IF((LEN('Controlador de perda de peso'!$C32)=0),TRUE)","v":true},{"$f":"IFERROR(IF(A29,0,IF(LEN('Controlador de perda de peso'!$B32)=0,0,'Controlador de perda de peso'!$B32)),\"\")","v":"00:00:00"},{"$f":"IFERROR(IF(A29,0,IF(LEN('Controlador de perda de peso'!$C32)=0,0,'Controlador de perda de peso'!$C32)),\"\")","v":0}]
[{"$f":"IF((LEN('Controlador de perda de peso'!$C33)=0),TRUE)","v":true},{"$f":"IFERROR(IF(A30,0,IF(LEN('Controlador de perda de peso'!$B33)=0,0,'Controlador de perda de peso'!$B33)),\"\")","v":"00:00:00"},{"$f":"IFERROR(IF(A30,0,IF(LEN('Controlador de perda de peso'!$C33)=0,0,'Controlador de perda de peso'!$C33)),\"\")","v":0}]
[{"$f":"IF((LEN('Controlador de perda de peso'!$C34)=0),TRUE)","v":true},{"$f":"IFERROR(IF(A31,0,IF(LEN('Controlador de perda de peso'!$B34)=0,0,'Controlador de perda de peso'!$B34)),\"\")","v":"00:00:00"},{"$f":"IFERROR(IF(A31,0,IF(LEN('Controlador de perda de peso'!$C34)=0,0,'Controlador de perda de peso'!$C34)),\"\")","v":0}]
[{"$f":"IF((LEN('Controlador de perda de peso'!$C35)=0),TRUE)","v":true},{"$f":"IFERROR(IF(A32,0,IF(LEN('Controlador de perda de peso'!$B35)=0,0,'Controlador de perda de peso'!$B35)),\"\")","v":"00:00:00"},{"$f":"IFERROR(IF(A32,0,IF(LEN('Controlador de perda de peso'!$C35)=0,0,'Controlador de perda de peso'!$C35)),\"\")","v":0}]
[{"$f":"IF((LEN('Controlador de perda de peso'!$C36)=0),TRUE)","v":true},{"$f":"IFERROR(IF(A33,0,IF(LEN('Controlador de perda de peso'!$B36)=0,0,'Controlador de perda de peso'!$B36)),\"\")","v":"00:00:00"},{"$f":"IFERROR(IF(A33,0,IF(LEN('Controlador de perda de peso'!$C36)=0,0,'Controlador de perda de peso'!$C36)),\"\")","v":0}]
[{"$f":"IF((LEN('Controlador de perda de peso'!$C37)=0),TRUE)","v":true},{"$f":"IFERROR(IF(A34,0,IF(LEN('Controlador de perda de peso'!$B37)=0,0,'Controlador de perda de peso'!$B37)),\"\")","v":"00:00:00"},{"$f":"IFERROR(IF(A34,0,IF(LEN('Controlador de perda de peso'!$C37)=0,0,'Controlador de perda de peso'!$C37)),\"\")","v":0}]
[{"$f":"IF((LEN('Controlador de perda de peso'!$C38)=0),TRUE)","v":true},{"$f":"IFERROR(IF(A35,0,IF(LEN('Controlador de perda de peso'!$B38)=0,0,'Controlador de perda de peso'!$B38)),\"\")","v":"00:00:00"},{"$f":"IFERROR(IF(A35,0,IF(LEN('Controlador de perda de peso'!$C38)=0,0,'Controlador de perda de peso'!$C38)),\"\")","v":0}]
[{"$f":"IF((LEN('Controlador de perda de peso'!$C39)=0),TRUE)","v":true},{"$f":"IFERROR(IF(A36,0,IF(LEN('Controlador de perda de peso'!$B39)=0,0,'Controlador de perda de peso'!$B39)),\"\")","v":"00:00:00"},{"$f":"IFERROR(IF(A36,0,IF(LEN('Controlador de perda de peso'!$C39)=0,0,'Controlador de perda de peso'!$C39)),\"\")","v":0}]
[{"$f":"IF((LEN('Controlador de perda de peso'!$C40)=0),TRUE)","v":true},{"$f":"IFERROR(IF(A37,0,IF(LEN('Controlador de perda de peso'!$B40)=0,0,'Controlador de perda de peso'!$B40)),\"\")","v":"00:00:00"},{"$f":"IFERROR(IF(A37,0,IF(LEN('Controlador de perda de peso'!$C40)=0,0,'Controlador de perda de peso'!$C40)),\"\")","v":0}]
[{"$f":"IF((LEN('Controlador de perda de peso'!$C41)=0),TRUE)","v":true},{"$f":"IFERROR(IF(A38,0,IF(LEN('Controlador de perda de peso'!$B41)=0,0,'Controlador de perda de peso'!$B41)),\"\")","v":"00:00:00"},{"$f":"IFERROR(IF(A38,0,IF(LEN('Controlador de perda de peso'!$C41)=0,0,'Controlador de perda de peso'!$C41)),\"\")","v":0}]
[{"$f":"IF((LEN('Controlador de perda de peso'!$C42)=0),TRUE)","v":true},{"$f":"IFERROR(IF(A39,0,IF(LEN('Controlador de perda de peso'!$B42)=0,0,'Controlador de perda de peso'!$B42)),\"\")","v":"00:00:00"},{"$f":"IFERROR(IF(A39,0,IF(LEN('Controlador de perda de peso'!$C42)=0,0,'Controlador de perda de peso'!$C42)),\"\")","v":0}]
[{"$f":"IF((LEN('Controlador de perda de peso'!$C43)=0),TRUE)","v":true},{"$f":"IFERROR(IF(A40,0,IF(LEN('Controlador de perda de peso'!$B43)=0,0,'Controlador de perda de peso'!$B43)),\"\")","v":"00:00:00"},{"$f":"IFERROR(IF(A40,0,IF(LEN('Controlador de perda de peso'!$C43)=0,0,'Controlador de perda de peso'!$C43)),\"\")","v":0}]
[{"$f":"IF((LEN('Controlador de perda de peso'!$C44)=0),TRUE)","v":true},{"$f":"IFERROR(IF(A41,0,IF(LEN('Controlador de perda de peso'!$B44)=0,0,'Controlador de perda de peso'!$B44)),\"\")","v":"00:00:00"},{"$f":"IFERROR(IF(A41,0,IF(LEN('Controlador de perda de peso'!$C44)=0,0,'Controlador de perda de peso'!$C44)),\"\")","v":0}]
[{"$f":"IF((LEN('Controlador de perda de peso'!$C45)=0),TRUE)","v":true},{"$f":"IFERROR(IF(A42,0,IF(LEN('Controlador de perda de peso'!$B45)=0,0,'Controlador de perda de peso'!$B45)),\"\")","v":"00:00:00"},{"$f":"IFERROR(IF(A42,0,IF(LEN('Controlador de perda de peso'!$C45)=0,0,'Controlador de perda de peso'!$C45)),\"\")","v":0}]
[{"$f":"IF((LEN('Controlador de perda de peso'!$C46)=0),TRUE)","v":true},{"$f":"IFERROR(IF(A43,0,IF(LEN('Controlador de perda de peso'!$B46)=0,0,'Controlador de perda de peso'!$B46)),\"\")","v":"00:00:00"},{"$f":"IFERROR(IF(A43,0,IF(LEN('Controlador de perda de peso'!$C46)=0,0,'Controlador de perda de peso'!$C46)),\"\")","v":0}]
[{"$f":"IF((LEN('Controlador de perda de peso'!$C47)=0),TRUE)","v":true},{"$f":"IFERROR(IF(A44,0,IF(LEN('Controlador de perda de peso'!$B47)=0,0,'Controlador de perda de peso'!$B47)),\"\")","v":"00:00:00"},{"$f":"IFERROR(IF(A44,0,IF(LEN('Controlador de perda de peso'!$C47)=0,0,'Controlador de perda de peso'!$C47)),\"\")","v":0}]
[{"$f":"IF((LEN('Controlador de perda de peso'!$C48)=0),TRUE)","v":true},{"$f":"IFERROR(IF(A45,0,IF(LEN('Controlador de perda de peso'!$B48)=0,0,'Controlador de perda de peso'!$B48)),\"\")","v":"00:00:00"},{"$f":"IFERROR(IF(A45,0,IF(LEN('Controlador de perda de peso'!$C48)=0,0,'Controlador de perda de peso'!$C48)),\"\")","v":0}]
[{"$f":"IF((LEN('Controlador de perda de peso'!$C49)=0),TRUE)","v":true},{"$f":"IFERROR(IF(A46,0,IF(LEN('Controlador de perda de peso'!$B49)=0,0,'Controlador de perda de peso'!$B49)),\"\")","v":"00:00:00"},{"$f":"IFERROR(IF(A46,0,IF(LEN('Controlador de perda de peso'!$C49)=0,0,'Controlador de perda de peso'!$C49)),\"\")","v":0}]
[{"$f":"IF((LEN('Controlador de perda de peso'!$C50)=0),TRUE)","v":true},{"$f":"IFERROR(IF(A47,0,IF(LEN('Controlador de perda de peso'!$B50)=0,0,'Controlador de perda de peso'!$B50)),\"\")","v":"00:00:00"},{"$f":"IFERROR(IF(A47,0,IF(LEN('Controlador de perda de peso'!$C50)=0,0,'Controlador de perda de peso'!$C50)),\"\")","v":0}]
[{"$f":"IF((LEN('Controlador de perda de peso'!$C51)=0),TRUE)","v":true},{"$f":"IFERROR(IF(A48,0,IF(LEN('Controlador de perda de peso'!$B51)=0,0,'Controlador de perda de peso'!$B51)),\"\")","v":"00:00:00"},{"$f":"IFERROR(IF(A48,0,IF(LEN('Controlador de perda de peso'!$C51)=0,0,'Controlador de perda de peso'!$C51)),\"\")","v":0}]
[{"$f":"IF((LEN('Controlador de perda de peso'!$C52)=0),TRUE)","v":true},{"$f":"IFERROR(IF(A49,0,IF(LEN('Controlador de perda de peso'!$B52)=0,0,'Controlador de perda de peso'!$B52)),\"\")","v":"00:00:00"},{"$f":"IFERROR(IF(A49,0,IF(LEN('Controlador de perda de peso'!$C52)=0,0,'Controlador de perda de peso'!$C52)),\"\")","v":0}]
[{"$f":"IF((LEN('Controlador de perda de peso'!$C53)=0),TRUE)","v":true},{"$f":"IFERROR(IF(A50,0,IF(LEN('Controlador de perda de peso'!$B53)=0,0,'Controlador de perda de peso'!$B53)),\"\")","v":"00:00:00"},{"$f":"IFERROR(IF(A50,0,IF(LEN('Controlador de perda de peso'!$C53)=0,0,'Controlador de perda de peso'!$C53)),\"\")","v":0}]
[{"$f":"IF((LEN('Controlador de perda de peso'!$C54)=0),TRUE)","v":true},{"$f":"IFERROR(IF(A51,0,IF(LEN('Controlador de perda de peso'!$B54)=0,0,'Controlador de perda de peso'!$B54)),\"\")","v":"00:00:00"},{"$f":"IFERROR(IF(A51,0,IF(LEN('Controlador de perda de peso'!$C54)=0,0,'Controlador de perda de peso'!$C54)),\"\")","v":0}]
[{"$f":"IF((LEN('Controlador de perda de peso'!$C55)=0),TRUE)","v":true},{"$f":"IFERROR(IF(A52,0,IF(LEN('Controlador de perda de peso'!$B55)=0,0,'Controlador de perda de peso'!$B55)),\"\")","v":"00:00:00"},{"$f":"IFERROR(IF(A52,0,IF(LEN('Controlador de perda de peso'!$C55)=0,0,'Controlador de perda de peso'!$C55)),\"\")","v":0}]
[{"$f":"IF((LEN('Controlador de perda de peso'!$C56)=0),TRUE)","v":true},{"$f":"IFERROR(IF(A53,0,IF(LEN('Controlador de perda de peso'!$B56)=0,0,'Controlador de perda de peso'!$B56)),\"\")","v":"00:00:00"},{"$f":"IFERROR(IF(A53,0,IF(LEN('Controlador de perda de peso'!$C56)=0,0,'Controlador de perda de peso'!$C56)),\"\")","v":0}]
[{"$f":"IF((LEN('Controlador de perda de peso'!$C57)=0),TRUE)","v":true},{"$f":"IFERROR(IF(A54,0,IF(LEN('Controlador de perda de peso'!$B57)=0,0,'Controlador de perda de peso'!$B57)),\"\")","v":"00:00:00"},{"$f":"IFERROR(IF(A54,0,IF(LEN('Controlador de perda de peso'!$C57)=0,0,'Controlador de perda de peso'!$C57)),\"\")","v":0}]
[{"$f":"IF((LEN('Controlador de perda de peso'!$C58)=0),TRUE)","v":true},{"$f":"IFERROR(IF(A55,0,IF(LEN('Controlador de perda de peso'!$B58)=0,0,'Controlador de perda de peso'!$B58)),\"\")","v":"00:00:00"},{"$f":"IFERROR(IF(A55,0,IF(LEN('Controlador de perda de peso'!$C58)=0,0,'Controlador de perda de peso'!$C58)),\"\")","v":0}]
[{"$f":"IF((LEN('Controlador de perda de peso'!$C59)=0),TRUE)","v":true},{"$f":"IFERROR(IF(A56,0,IF(LEN('Controlador de perda de peso'!$B59)=0,0,'Controlador de perda de peso'!$B59)),\"\")","v":"00:00:00"},{"$f":"IFERROR(IF(A56,0,IF(LEN('Controlador de perda de peso'!$C59)=0,0,'Controlador de perda de peso'!$C59)),\"\")","v":0}]
[{"$f":"IF((LEN('Controlador de perda de peso'!$C60)=0),TRUE)","v":true},{"$f":"IFERROR(IF(A57,0,IF(LEN('Controlador de perda de peso'!$B60)=0,0,'Controlador de perda de peso'!$B60)),\"\")","v":"00:00:00"},{"$f":"IFERROR(IF(A57,0,IF(LEN('Controlador de perda de peso'!$C60)=0,0,'Controlador de perda de peso'!$C60)),\"\")","v":0}]
[{"$f":"IF((LEN('Controlador de perda de peso'!$C61)=0),TRUE)","v":true},{"$f":"IFERROR(IF(A58,0,IF(LEN('Controlador de perda de peso'!$B61)=0,0,'Controlador de perda de peso'!$B61)),\"\")","v":"00:00:00"},{"$f":"IFERROR(IF(A58,0,IF(LEN('Controlador de perda de peso'!$C61)=0,0,'Controlador de perda de peso'!$C61)),\"\")","v":0}]
[{"$f":"IF((LEN('Controlador de perda de peso'!$C62)=0),TRUE)","v":true},{"$f":"IFERROR(IF(A59,0,IF(LEN('Controlador de perda de peso'!$B62)=0,0,'Controlador de perda de peso'!$B62)),\"\")","v":"00:00:00"},{"$f":"IFERROR(IF(A59,0,IF(LEN('Controlador de perda de peso'!$C62)=0,0,'Controlador de perda de peso'!$C62)),\"\")","v":0}]
[{"$f":"IF((LEN('Controlador de perda de peso'!$C63)=0),TRUE)","v":true},{"$f":"IFERROR(IF(A60,0,IF(LEN('Controlador de perda de peso'!$B63)=0,0,'Controlador de perda de peso'!$B63)),\"\")","v":"00:00:00"},{"$f":"IFERROR(IF(A60,0,IF(LEN('Controlador de perda de peso'!$C63)=0,0,'Controlador de perda de peso'!$C63)),\"\")","v":0}]
[{"$f":"IF((LEN('Controlador de perda de peso'!$C64)=0),TRUE)","v":true},{"$f":"IFERROR(IF(A61,0,IF(LEN('Controlador de perda de peso'!$B64)=0,0,'Controlador de perda de peso'!$B64)),\"\")","v":"00:00:00"},{"$f":"IFERROR(IF(A61,0,IF(LEN('Controlador de perda de peso'!$C64)=0,0,'Controlador de perda de peso'!$C64)),\"\")","v":0}]
[{"$f":"IF((LEN('Controlador de perda de peso'!$C65)=0),TRUE)","v":true},{"$f":"IFERROR(IF(A62,0,IF(LEN('Controlador de perda de peso'!$B65)=0,0,'Controlador de perda de peso'!$B65)),\"\")","v":"00:00:00"},{"$f":"IFERROR(IF(A62,0,IF(LEN('Controlador de perda de peso'!$C65)=0,0,'Controlador de perda de peso'!$C65)),\"\")","v":0}]
[{"$f":"IF((LEN('Controlador de perda de peso'!$C66)=0),TRUE)","v":true},{"$f":"IFERROR(IF(A63,0,IF(LEN('Controlador de perda de peso'!$B66)=0,0,'Controlador de perda de peso'!$B66)),\"\")","v":"00:00:00"},{"$f":"IFERROR(IF(A63,0,IF(LEN('Controlador de perda de peso'!$C66)=0,0,'Controlador de perda de peso'!$C66)),\"\")","v":0}]
[{"$f":"IF((LEN('Controlador de perda de peso'!$C67)=0),TRUE)","v":true},{"$f":"IFERROR(IF(A64,0,IF(LEN('Controlador de perda de peso'!$B67)=0,0,'Controlador de perda de peso'!$B67)),\"\")","v":"00:00:00"},{"$f":"IFERROR(IF(A64,0,IF(LEN('Controlador de perda de peso'!$C67)=0,0,'Controlador de perda de peso'!$C67)),\"\")","v":0}]
[{"$f":"IF((LEN('Controlador de perda de peso'!$C68)=0),TRUE)","v":true},{"$f":"IFERROR(IF(A65,0,IF(LEN('Controlador de perda de peso'!$B68)=0,0,'Controlador de perda de peso'!$B68)),\"\")","v":"00:00:00"},{"$f":"IFERROR(IF(A65,0,IF(LEN('Controlador de perda de peso'!$C68)=0,0,'Controlador de perda de peso'!$C68)),\"\")","v":0}]
[{"$f":"IF((LEN('Controlador de perda de peso'!$C69)=0),TRUE)","v":true},{"$f":"IFERROR(IF(A66,0,IF(LEN('Controlador de perda de peso'!$B69)=0,0,'Controlador de perda de peso'!$B69)),\"\")","v":"00:00:00"},{"$f":"IFERROR(IF(A66,0,IF(LEN('Controlador de perda de peso'!$C69)=0,0,'Controlador de perda de peso'!$C69)),\"\")","v":0}]
[{"$f":"IF((LEN('Controlador de perda de peso'!$C70)=0),TRUE)","v":true},{"$f":"IFERROR(IF(A67,0,IF(LEN('Controlador de perda de peso'!$B70)=0,0,'Controlador de perda de peso'!$B70)),\"\")","v":"00:00:00"},{"$f":"IFERROR(IF(A67,0,IF(LEN('Controlador de perda de peso'!$C70)=0,0,'Controlador de perda de peso'!$C70)),\"\")","v":0}]
[{"$f":"IF((LEN('Controlador de perda de peso'!$C71)=0),TRUE)","v":true},{"$f":"IFERROR(IF(A68,0,IF(LEN('Controlador de perda de peso'!$B71)=0,0,'Controlador de perda de peso'!$B71)),\"\")","v":"00:00:00"},{"$f":"IFERROR(IF(A68,0,IF(LEN('Controlador de perda de peso'!$C71)=0,0,'Controlador de perda de peso'!$C71)),\"\")","v":0}]
[{"$f":"IF((LEN('Controlador de perda de peso'!$C72)=0),TRUE)","v":true},{"$f":"IFERROR(IF(A69,0,IF(LEN('Controlador de perda de peso'!$B72)=0,0,'Controlador de perda de peso'!$B72)),\"\")","v":"00:00:00"},{"$f":"IFERROR(IF(A69,0,IF(LEN('Controlador de perda de peso'!$C72)=0,0,'Controlador de perda de peso'!$C72)),\"\")","v":0}]
[{"$f":"IF((LEN('Controlador de perda de peso'!$C73)=0),TRUE)","v":true},{"$f":"IFERROR(IF(A70,0,IF(LEN('Controlador de perda de peso'!$B73)=0,0,'Controlador de perda de peso'!$B73)),\"\")","v":"00:00:00"},{"$f":"IFERROR(IF(A70,0,IF(LEN('Controlador de perda de peso'!$C73)=0,0,'Controlador de perda de peso'!$C73)),\"\")","v":0}]
[{"$f":"IF((LEN('Controlador de perda de peso'!$C74)=0),TRUE)","v":true},{"$f":"IFERROR(IF(A71,0,IF(LEN('Controlador de perda de peso'!$B74)=0,0,'Controlador de perda de peso'!$B74)),\"\")","v":"00:00:00"},{"$f":"IFERROR(IF(A71,0,IF(LEN('Controlador de perda de peso'!$C74)=0,0,'Controlador de perda de peso'!$C74)),\"\")","v":0}]
[{"$f":"IF((LEN('Controlador de perda de peso'!$C75)=0),TRUE)","v":true},{"$f":"IFERROR(IF(A72,0,IF(LEN('Controlador de perda de peso'!$B75)=0,0,'Controlador de perda de peso'!$B75)),\"\")","v":"00:00:00"},{"$f":"IFERROR(IF(A72,0,IF(LEN('Controlador de perda de peso'!$C75)=0,0,'Controlador de perda de peso'!$C75)),\"\")","v":0}]
[{"$f":"IF((LEN('Controlador de perda de peso'!$C76)=0),TRUE)","v":true},{"$f":"IFERROR(IF(A73,0,IF(LEN('Controlador de perda de peso'!$B76)=0,0,'Controlador de perda de peso'!$B76)),\"\")","v":"00:00:00"},{"$f":"IFERROR(IF(A73,0,IF(LEN('Controlador de perda de peso'!$C76)=0,0,'Controlador de perda de peso'!$C76)),\"\")","v":0}]
[{"$f":"IF((LEN('Controlador de perda de peso'!$C77)=0),TRUE)","v":true},{"$f":"IFERROR(IF(A74,0,IF(LEN('Controlador de perda de peso'!$B77)=0,0,'Controlador de perda de peso'!$B77)),\"\")","v":"00:00:00"},{"$f":"IFERROR(IF(A74,0,IF(LEN('Controlador de perda de peso'!$C77)=0,0,'Controlador de perda de peso'!$C77)),\"\")","v":0}]
[{"$f":"IF((LEN('Controlador de perda de peso'!$C78)=0),TRUE)","v":true},{"$f":"IFERROR(IF(A75,0,IF(LEN('Controlador de perda de peso'!$B78)=0,0,'Controlador de perda de peso'!$B78)),\"\")","v":"00:00:00"},{"$f":"IFERROR(IF(A75,0,IF(LEN('Controlador de perda de peso'!$C78)=0,0,'Controlador de perda de peso'!$C78)),\"\")","v":0}]
[{"$f":"IF((LEN('Controlador de perda de peso'!$C79)=0),TRUE)","v":true},{"$f":"IFERROR(IF(A76,0,IF(LEN('Controlador de perda de peso'!$B79)=0,0,'Controlador de perda de peso'!$B79)),\"\")","v":"00:00:00"},{"$f":"IFERROR(IF(A76,0,IF(LEN('Controlador de perda de peso'!$C79)=0,0,'Controlador de perda de peso'!$C79)),\"\")","v":0}]
[{"$f":"IF((LEN('Controlador de perda de peso'!$C80)=0),TRUE)","v":true},{"$f":"IFERROR(IF(A77,0,IF(LEN('Controlador de perda de peso'!$B80)=0,0,'Controlador de perda de peso'!$B80)),\"\")","v":"00:00:00"},{"$f":"IFERROR(IF(A77,0,IF(LEN('Controlador de perda de peso'!$C80)=0,0,'Controlador de perda de peso'!$C80)),\"\")","v":0}]
[{"$f":"IF((LEN('Controlador de perda de peso'!$C81)=0),TRUE)","v":true},{"$f":"IFERROR(IF(A78,0,IF(LEN('Controlador de perda de peso'!$B81)=0,0,'Controlador de perda de peso'!$B81)),\"\")","v":"00:00:00"},{"$f":"IFERROR(IF(A78,0,IF(LEN('Controlador de perda de peso'!$C81)=0,0,'Controlador de perda de peso'!$C81)),\"\")","v":0}]
[{"$f":"IF((LEN('Controlador de perda de peso'!$C82)=0),TRUE)","v":true},{"$f":"IFERROR(IF(A79,0,IF(LEN('Controlador de perda de peso'!$B82)=0,0,'Controlador de perda de peso'!$B82)),\"\")","v":"00:00:00"},{"$f":"IFERROR(IF(A79,0,IF(LEN('Controlador de perda de peso'!$C82)=0,0,'Controlador de perda de peso'!$C82)),\"\")","v":0}]
[{"$f":"IF((LEN('Controlador de perda de peso'!$C83)=0),TRUE)","v":true},{"$f":"IFERROR(IF(A80,0,IF(LEN('Controlador de perda de peso'!$B83)=0,0,'Controlador de perda de peso'!$B83)),\"\")","v":"00:00:00"},{"$f":"IFERROR(IF(A80,0,IF(LEN('Controlador de perda de peso'!$C83)=0,0,'Controlador de perda de peso'!$C83)),\"\")","v":0}]
[{"$f":"IF((LEN('Controlador de perda de peso'!$C84)=0),TRUE)","v":true},{"$f":"IFERROR(IF(A81,0,IF(LEN('Controlador de perda de peso'!$B84)=0,0,'Controlador de perda de peso'!$B84)),\"\")","v":"00:00:00"},{"$f":"IFERROR(IF(A81,0,IF(LEN('Controlador de perda de peso'!$C84)=0,0,'Controlador de perda de peso'!$C84)),\"\")","v":0}]
[{"$f":"IF((LEN('Controlador de perda de peso'!$C85)=0),TRUE)","v":true},{"$f":"IFERROR(IF(A82,0,IF(LEN('Controlador de perda de peso'!$B85)=0,0,'Controlador de perda de peso'!$B85)),\"\")","v":"00:00:00"},{"$f":"IFERROR(IF(A82,0,IF(LEN('Controlador de perda de peso'!$C85)=0,0,'Controlador de perda de peso'!$C85)),\"\")","v":0}]
[{"$f":"IF((LEN('Controlador de perda de peso'!$C86)=0),TRUE)","v":true},{"$f":"IFERROR(IF(A83,0,IF(LEN('Controlador de perda de peso'!$B86)=0,0,'Controlador de perda de peso'!$B86)),\"\")","v":"00:00:00"},{"$f":"IFERROR(IF(A83,0,IF(LEN('Controlador de perda de peso'!$C86)=0,0,'Controlador de perda de peso'!$C86)),\"\")","v":0}]
[{"$f":"IF((LEN('Controlador de perda de peso'!$C87)=0),TRUE)","v":true},{"$f":"IFERROR(IF(A84,0,IF(LEN('Controlador de perda de peso'!$B87)=0,0,'Controlador de perda de peso'!$B87)),\"\")","v":"00:00:00"},{"$f":"IFERROR(IF(A84,0,IF(LEN('Controlador de perda de peso'!$C87)=0,0,'Controlador de perda de peso'!$C87)),\"\")","v":0}]
[{"$f":"IF((LEN('Controlador de perda de peso'!$C88)=0),TRUE)","v":true},{"$f":"IFERROR(IF(A85,0,IF(LEN('Controlador de perda de peso'!$B88)=0,0,'Controlador de perda de peso'!$B88)),\"\")","v":"00:00:00"},{"$f":"IFERROR(IF(A85,0,IF(LEN('Controlador de perda de peso'!$C88)=0,0,'Controlador de perda de peso'!$C88)),\"\")","v":0}]
[{"$f":"IF((LEN('Controlador de perda de peso'!$C89)=0),TRUE)","v":true},{"$f":"IFERROR(IF(A86,0,IF(LEN('Controlador de perda de peso'!$B89)=0,0,'Controlador de perda de peso'!$B89)),\"\")","v":"00:00:00"},{"$f":"IFERROR(IF(A86,0,IF(LEN('Controlador de perda de peso'!$C89)=0,0,'Controlador de perda de peso'!$C89)),\"\")","v":0}]
[{"$f":"IF((LEN('Controlador de perda de peso'!$C90)=0),TRUE)","v":true},{"$f":"IFERROR(IF(A87,0,IF(LEN('Controlador de perda de peso'!$B90)=0,0,'Controlador de perda de peso'!$B90)),\"\")","v":"00:00:00"},{"$f":"IFERROR(IF(A87,0,IF(LEN('Controlador de perda de peso'!$C90)=0,0,'Controlador de perda de peso'!$C90)),\"\")","v":0}]
[{"$f":"IF((LEN('Controlador de perda de peso'!$C91)=0),TRUE)","v":true},{"$f":"IFERROR(IF(A88,0,IF(LEN('Controlador de perda de peso'!$B91)=0,0,'Controlador de perda de peso'!$B91)),\"\")","v":"00:00:00"},{"$f":"IFERROR(IF(A88,0,IF(LEN('Controlador de perda de peso'!$C91)=0,0,'Controlador de perda de peso'!$C91)),\"\")","v":0}]
[{"$f":"IF((LEN('Controlador de perda de peso'!$C92)=0),TRUE)","v":true},{"$f":"IFERROR(IF(A89,0,IF(LEN('Controlador de perda de peso'!$B92)=0,0,'Controlador de perda de peso'!$B92)),\"\")","v":"00:00:00"},{"$f":"IFERROR(IF(A89,0,IF(LEN('Controlador de perda de peso'!$C92)=0,0,'Controlador de perda de peso'!$C92)),\"\")","v":0}]
[{"$f":"IF((LEN('Controlador de perda de peso'!$C93)=0),TRUE)","v":true},{"$f":"IFERROR(IF(A90,0,IF(LEN('Controlador de perda de peso'!$B93)=0,0,'Controlador de perda de peso'!$B93)),\"\")","v":"00:00:00"},{"$f":"IFERROR(IF(A90,0,IF(LEN('Controlador de perda de peso'!$C93)=0,0,'Controlador de perda de peso'!$C93)),\"\")","v":0}]
[{"$f":"IF((LEN('Controlador de perda de peso'!$C94)=0),TRUE)","v":true},{"$f":"IFERROR(IF(A91,0,IF(LEN('Controlador de perda de peso'!$B94)=0,0,'Controlador de perda de peso'!$B94)),\"\")","v":"00:00:00"},{"$f":"IFERROR(IF(A91,0,IF(LEN('Controlador de perda de peso'!$C94)=0,0,'Controlador de perda de peso'!$C94)),\"\")","v":0}]
[{"$f":"IF((LEN('Controlador de perda de peso'!$C95)=0),TRUE)","v":true},{"$f":"IFERROR(IF(A92,0,IF(LEN('Controlador de perda de peso'!$B95)=0,0,'Controlador de perda de peso'!$B95)),\"\")","v":"00:00:00"},{"$f":"IFERROR(IF(A92,0,IF(LEN('Controlador de perda de peso'!$C95)=0,0,'Controlador de perda de peso'!$C95)),\"\")","v":0}]
[{"$f":"IF((LEN('Controlador de perda de peso'!$C96)=0),TRUE)","v":true},{"$f":"IFERROR(IF(A93,0,IF(LEN('Controlador de perda de peso'!$B96)=0,0,'Controlador de perda de peso'!$B96)),\"\")","v":"00:00:00"},{"$f":"IFERROR(IF(A93,0,IF(LEN('Controlador de perda de peso'!$C96)=0,0,'Controlador de perda de peso'!$C96)),\"\")","v":0}]
[{"$f":"IF((LEN('Controlador de perda de peso'!$C97)=0),TRUE)","v":true},{"$f":"IFERROR(IF(A94,0,IF(LEN('Controlador de perda de peso'!$B97)=0,0,'Controlador de perda de peso'!$B97)),\"\")","v":"00:00:00"},{"$f":"IFERROR(IF(A94,0,IF(LEN('Controlador de perda de peso'!$C97)=0,0,'Controlador de perda de peso'!$C97)),\"\")","v":0}]
[{"$f":"IF((LEN('Controlador de perda de peso'!$C98)=0),TRUE)","v":true},{"$f":"IFERROR(IF(A95,0,IF(LEN('Controlador de perda de peso'!$B98)=0,0,'Controlador de perda de peso'!$B98)),\"\")","v":"00:00:00"},{"$f":"IFERROR(IF(A95,0,IF(LEN('Controlador de perda de peso'!$C98)=0,0,'Controlador de perda de peso'!$C98)),\"\")","v":0}]
[{"$f":"IF((LEN('Controlador de perda de peso'!$C99)=0),TRUE)","v":true},{"$f":"IFERROR(IF(A96,0,IF(LEN('Controlador de perda de peso'!$B99)=0,0,'Controlador de perda de peso'!$B99)),\"\")","v":"00:00:00"},{"$f":"IFERROR(IF(A96,0,IF(LEN('Controlador de perda de peso'!$C99)=0,0,'Controlador de perda de peso'!$C99)),\"\")","v":0}]
[{"$f":"IF((LEN('Controlador de perda de peso'!$C100)=0),TRUE)","v":true},{"$f":"IFERROR(IF(A97,0,IF(LEN('Controlador de perda de peso'!$B100)=0,0,'Controlador de perda de peso'!$B100)),\"\")","v":"00:00:00"},{"$f":"IFERROR(IF(A97,0,IF(LEN('Controlador de perda de peso'!$C100)=0,0,'Controlador de perda de peso'!$C100)),\"\")","v":0}]
[{"$f":"IF((LEN('Controlador de perda de peso'!$C101)=0),TRUE)","v":true},{"$f":"IFERROR(IF(A98,0,IF(LEN('Controlador de perda de peso'!$B101)=0,0,'Controlador de perda de peso'!$B101)),\"\")","v":"00:00:00"},{"$f":"IFERROR(IF(A98,0,IF(LEN('Controlador de perda de peso'!$C101)=0,0,'Controlador de perda de peso'!$C101)),\"\")","v":0}]
[{"$f":"IF((LEN('Controlador de perda de peso'!$C102)=0),TRUE)","v":true},{"$f":"IFERROR(IF(A99,0,IF(LEN('Controlador de perda de peso'!$B102)=0,0,'Controlador de perda de peso'!$B102)),\"\")","v":"00:00:00"},{"$f":"IFERROR(IF(A99,0,IF(LEN('Controlador de perda de peso'!$C102)=0,0,'Controlador de perda de peso'!$C102)),\"\")","v":0}]
[{"$f":"IF((LEN('Controlador de perda de peso'!$C103)=0),TRUE)","v":true},{"$f":"IFERROR(IF(A100,0,IF(LEN('Controlador de perda de peso'!$B103)=0,0,'Controlador de perda de peso'!$B103)),\"\")","v":"00:00:00"},{"$f":"IFERROR(IF(A100,0,IF(LEN('Controlador de perda de peso'!$C103)=0,0,'Controlador de perda de peso'!$C103)),\"\")","v":0}]
[{"$f":"IF((LEN('Controlador de perda de peso'!$C104)=0),TRUE)","v":true},{"$f":"IFERROR(IF(A101,0,IF(LEN('Controlador de perda de peso'!$B104)=0,0,'Controlador de perda de peso'!$B104)),\"\")","v":"00:00:00"},{"$f":"IFERROR(IF(A101,0,IF(LEN('Controlador de perda de peso'!$C104)=0,0,'Controlador de perda de peso'!$C104)),\"\")","v":0}]
[{"$f":"IF((LEN('Controlador de perda de peso'!$C105)=0),TRUE)","v":true},{"$f":"IFERROR(IF(A102,0,IF(LEN('Controlador de perda de peso'!$B105)=0,0,'Controlador de perda de peso'!$B105)),\"\")","v":"00:00:00"},{"$f":"IFERROR(IF(A102,0,IF(LEN('Controlador de perda de peso'!$C105)=0,0,'Controlador de perda de peso'!$C105)),\"\")","v":0}]
[{"$f":"IF((LEN('Controlador de perda de peso'!$C106)=0),TRUE)","v":true},{"$f":"IFERROR(IF(A103,0,IF(LEN('Controlador de perda de peso'!$B106)=0,0,'Controlador de perda de peso'!$B106)),\"\")","v":"00:00:00"},{"$f":"IFERROR(IF(A103,0,IF(LEN('Controlador de perda de peso'!$C106)=0,0,'Controlador de perda de peso'!$C106)),\"\")","v":0}]
[{"$f":"IF((LEN('Controlador de perda de peso'!$C107)=0),TRUE)","v":true},{"$f":"IFERROR(IF(A104,0,IF(LEN('Controlador de perda de peso'!$B107)=0,0,'Controlador de perda de peso'!$B107)),\"\")","v":"00:00:00"},{"$f":"IFERROR(IF(A104,0,IF(LEN('Controlador de perda de peso'!$C107)=0,0,'Controlador de perda de peso'!$C107)),\"\")","v":0}]
[{"$f":"IF((LEN('Controlador de perda de peso'!$C108)=0),TRUE)","v":true},{"$f":"IFERROR(IF(A105,0,IF(LEN('Controlador de perda de peso'!$B108)=0,0,'Controlador de perda de peso'!$B108)),\"\")","v":"00:00:00"},{"$f":"IFERROR(IF(A105,0,IF(LEN('Controlador de perda de peso'!$C108)=0,0,'Controlador de perda de peso'!$C108)),\"\")","v":0}]
[{"$f":"IF((LEN('Controlador de perda de peso'!$C109)=0),TRUE)","v":true},{"$f":"IFERROR(IF(A106,0,IF(LEN('Controlador de perda de peso'!$B109)=0,0,'Controlador de perda de peso'!$B109)),\"\")","v":"00:00:00"},{"$f":"IFERROR(IF(A106,0,IF(LEN('Controlador de perda de peso'!$C109)=0,0,'Controlador de perda de peso'!$C109)),\"\")","v":0}]
[{"$f":"IF((LEN('Controlador de perda de peso'!$C110)=0),TRUE)","v":true},{"$f":"IFERROR(IF(A107,0,IF(LEN('Controlador de perda de peso'!$B110)=0,0,'Controlador de perda de peso'!$B110)),\"\")","v":"00:00:00"},{"$f":"IFERROR(IF(A107,0,IF(LEN('Controlador de perda de peso'!$C110)=0,0,'Controlador de perda de peso'!$C110)),\"\")","v":0}]